bitfinex-derivatives/quotes_BNBF0:USTF0_20260221
["timestamp","ask_amount","ask_price","bid_price","bid_amount"]
[1771634824336,1.18974947,625.05,624.3,1.54]
[1771634829349,1.18974947,625.06,624.3,1.54]
[1771634834351,1.18974947,625.07,624.3,1.54]
[1771634836248,1.18974947,625.06,624.3,1.54]
[1771634838350,1.18974947,625.07,624.3,1.54]
[1771634843157,1.18974947,625.09,624.37,1.19714616]
[1771634847163,1.18974947,625.09,624.38,1.19714616]
[1771634848462,1.18974947,625.08,624.38,1.19714616]
[1771634848966,1.18974947,625.0,624.3,1.54]
[1771634849163,1.18974947,624.96,624.3,1.54]
[1771634849363,1.18974947,624.92,624.3,1.54]
[1771634849867,1.18974947,624.92,624.29,8.3465936]
[1771634853672,1.18974947,624.92,624.21,1.19714616]
[1771634854069,1.18974947,624.92,624.22,1.313]
[1771634858074,1.18974947,624.94,624.22,2.51014616]
[1771634858273,1.18974947,624.96,624.24,1.19714616]
[1771634858978,1.18974947,624.97,624.25,1.19714616]
[1771634864783,1.18974947,624.96,624.25,1.19714616]
[1771634868291,1.18974947,625.0,624.28,1.19714616]
[1771634870194,1.18974947,625.0,624.29,1.572]
[1771634870391,1.18974947,624.99,624.29,1.572]
[1771634873293,1.18974947,624.99,624.29,2.76914616]
[1771634879202,1.18974947,624.98,624.29,2.76914616]
[1771634881305,1.18974947,624.98,624.3,1.19714616]
[1771634885305,1.18974947,624.97,624.3,1.19714616]
[1771634885504,1.18974947,624.96,624.3,1.19714616]
[1771634889210,1.18974947,624.95,624.31,1.19714616]
[1771634889407,1.18974947,624.92,624.29,1.572]
[1771634890815,1.18974947,624.91,624.29,1.572]
[1771634891112,1.18974947,624.89,624.29,1.572]
[1771634892311,1.18974947,624.88,624.29,1.572]
[1771634894413,1.18974947,624.89,624.29,1.572]
[1771634895215,1.18974947,624.88,624.29,1.572]
[1771634898718,1.19117856,624.88,624.29,1.572]
[1771634903118,1.19117856,624.88,624.31,1.20012193]
[1771634903322,1.19117856,624.9,624.31,1.20012193]
[1771634906228,1.19117856,624.9,624.3,1.20012193]
[1771634906925,1.5854328,625.01,624.29,1.572]
[1771634907124,1.19147259,624.9,624.3,1.20019983]
[1771634909222,1.19147259,625.02,624.42,1.20019983]
[1771634910327,1.19147259,625.02,624.41,1.20019983]
[1771634911229,1.19147259,625.0,624.39,1.20019983]
[1771634911425,1.19147259,625.0,624.29,1.572]
[1771634911426,1.19147259,625.0,624.4,1.20019983]
[1771634912230,1.19147259,625.01,624.39,1.20019983]
[1771634919036,1.19147259,625.01,624.38,1.20019983]
[1771634919241,1.19147259,624.91,624.29,1.572]
[1771634921947,1.19147259,624.91,624.28,1.20019983]
[1771634922244,1.19147259,624.91,624.27,1.20019983]
[1771634925548,1.19147259,624.91,624.28,1.49]
[1771634927552,1.19147259,624.82,624.28,1.49]
[1771634928351,1.19147259,624.83,624.28,1.49]
[1771634928948,1.19147259,624.82,624.28,1.49]
[1771634930250,1.19147259,624.83,624.28,1.49]
[1771634933151,1.19147259,624.84,624.28,1.49]
[1771634933351,1.19147259,624.85,624.28,1.49]
[1771634937258,1.19147259,624.86,624.28,1.49]
[1771634938955,1.19147259,624.87,624.28,1.49]
[1771634939160,1.19147259,624.92,624.28,1.49]
[1771634940758,1.19147259,624.94,624.28,1.49]
[1771634940959,1.19147259,624.96,624.28,1.49]
[1771634941458,1.19147259,624.97,624.28,1.49]
[1771634941864,1.19147259,624.98,624.28,1.49]
[1771634942061,0.27855488,625.14,624.36,1.20019983]
[1771634942062,1.19147259,625.07,624.36,1.20019983]
[1771634942864,1.19147259,625.09,624.38,1.20019983]
[1771634944366,1.19147259,625.1,624.37,1.20019983]
[1771634944868,1.47002747,625.14,624.41,1.20019983]
[1771634946474,1.47002747,625.14,624.3,1.57515137]
[1771634946475,0.27855488,625.14,624.4,1.20019983]
[1771634949473,0.27855488,625.14,624.28,3.06515137]
[1771634949474,0.27855488,625.14,624.39,1.20019983]
[1771634950173,0.27855488,625.14,624.28,1.49]
[1771634950174,0.27855488,625.14,624.38,1.20019983]
[1771634950577,1.47002747,625.14,624.37,1.20019983]
[1771634950773,1.19147259,625.07,624.29,1.20019983]
[1771634952875,1.19147259,625.06,624.29,1.20019983]
[1771634955980,1.19147259,625.07,624.3,1.20019983]
[1771634963282,1.19147259,625.08,624.31,1.20019983]
[1771634969786,0.27855488,625.14,624.28,1.49]
[1771634969980,1.18880261,625.08,624.31,1.19611079]
[1771634972683,1.18880261,625.19,624.43,1.19611079]
[1771634972986,1.18880261,625.2,624.44,1.19611079]
[1771634978387,1.18880261,625.19,624.44,1.19611079]
[1771634979185,1.18880261,625.19,624.45,1.19611079]
[1771634980190,1.18880261,625.18,624.45,1.19611079]
[1771634981187,1.18880261,625.18,624.46,1.19611079]
[1771634982393,1.18880261,625.17,624.47,1.19611079]
[1771634983190,1.18880261,625.16,624.48,1.19611079]
[1771634986189,1.18880261,625.15,624.48,1.19611079]
[1771634986392,1.18880261,625.16,624.48,1.19611079]
[1771634986592,1.18880261,625.16,624.49,1.641]
[1771634993198,1.18880261,625.17,624.49,2.83711079]
[1771634993498,1.18880261,625.17,624.49,1.641]
[1771634997701,1.18880261,625.16,624.49,1.641]
[1771635001304,1.18880261,625.1,624.49,1.641]
[1771635002902,1.18880261,625.07,624.49,1.641]
[1771635003806,1.18880261,624.96,624.49,1.641]
[1771635004304,1.5854328,625.08,624.49,1.641]
[1771635004305,1.18880261,624.97,624.49,1.641]
[1771635006205,1.18880261,624.96,624.49,1.641]
[1771635006409,1.18880261,624.97,624.49,1.641]
[1771635007105,1.18880261,624.96,624.49,1.641]
[1771635008411,1.18880261,624.97,624.49,1.641]
[1771635010112,1.18880261,624.96,624.49,1.641]
[1771635010409,1.18880261,624.97,624.49,1.641]
[1771635012509,1.18880261,624.98,624.49,1.641]
[1771635015419,1.18880261,624.99,624.49,1.641]
[1771635018313,1.18880261,625.0,624.49,1.641]
[1771635021815,1.18880261,624.98,624.49,1.641]
[1771635023220,1.18880261,624.97,624.49,1.641]
[1771635023921,1.18880261,625.0,624.49,1.641]
[1771635026226,1.18880261,625.06,624.49,1.641]
[1771635026823,1.18880261,625.05,624.49,1.641]
[1771635028725,1.18880261,625.05,624.25,1.19611079]
[1771635030328,1.18880261,625.05,624.26,1.19611079]
[1771635031228,1.18880261,625.05,624.27,1.875]
[1771635031428,1.18880261,625.04,624.27,1.875]
[1771635031928,1.18880261,625.07,624.28,1.19611079]
[1771635032428,1.18880261,625.07,624.29,1.19611079]
[1771635033330,1.18880261,625.06,624.29,1.19611079]
[1771635035334,1.18880261,625.06,624.3,1.19611079]
[1771635036534,1.18880261,625.05,624.3,1.19611079]
[1771635037434,1.18880261,625.05,624.31,1.19611079]
[1771635038334,1.18880261,625.04,624.31,1.19611079]
[1771635039337,1.18880261,625.02,624.29,1.19611079]
[1771635039534,1.18880261,625.02,624.3,1.19611079]
[1771635040636,1.18880261,625.01,624.3,1.19611079]
[1771635041343,1.18880261,625.01,624.27,1.875]
[1771635041344,1.18880261,625.01,624.31,1.19611079]
[1771635042343,1.18880261,625.0,624.32,1.19611079]
[1771635043341,1.18880261,624.99,624.32,1.19611079]
[1771635044446,1.18880261,624.98,624.33,1.19611079]
[1771635047346,1.18880261,624.97,624.34,1.19611079]
[1771635047646,1.18880261,624.97,624.35,1.517]
[1771635053153,1.18880261,624.9,624.35,1.517]
[1771635063660,1.18880261,624.88,624.35,1.517]
[1771635065861,1.18880261,624.88,624.25,1.19611079]
[1771635066357,1.18880261,624.89,624.25,1.19611079]
[1771635068762,1.18880261,624.89,624.26,1.662]
[1771635083471,1.18880261,624.88,624.26,1.662]
[1771635086276,1.18880261,624.88,624.26,2.85811079]
[1771635090483,1.18880261,624.87,624.26,2.85811079]
[1771635091679,1.18880261,624.86,624.26,1.662]
[1771635092385,1.18880261,624.85,624.26,1.662]
[1771635094384,1.18880261,624.85,624.26,2.85811079]
[1771635095488,1.18880261,624.84,624.26,2.85811079]
[1771635096388,1.18880261,624.84,624.27,1.19611079]
[1771635097485,1.18880261,624.83,624.27,1.19611079]
[1771635104295,1.19256327,624.83,624.27,1.20131675]
[1771635106394,1.19256327,624.83,624.28,1.20131675]
[1771635106800,1.19256327,624.81,624.26,2.86331675]
[1771635107300,1.19256327,624.77,624.26,1.662]
[1771635108297,1.19256327,624.78,624.26,1.662]
[1771635111400,1.19256327,624.79,624.26,1.662]
[1771635116200,1.19256327,624.8,624.26,1.662]
[1771635117601,1.19256327,624.78,624.26,1.662]
[1771635121908,1.19256327,624.78,624.21,9.46771296]
[1771635124811,1.19256327,624.78,624.22,1.304]
[1771635127412,1.19256327,624.79,624.22,1.304]
[1771635135218,1.19256327,624.78,624.22,1.304]
[1771635139222,1.19256327,624.79,624.22,1.304]
[1771635143429,1.19256327,624.8,624.22,1.304]
[1771635144226,1.19256327,624.79,624.22,1.304]
[1771635148228,1.19256327,624.78,624.22,1.304]
[1771635151229,1.19256327,624.77,624.22,1.304]
[1771635152833,1.19256327,624.77,624.21,10.66902971]
[1771635156433,1.19256327,624.77,624.22,1.316]
[1771635157131,1.19256327,624.76,624.22,1.316]
[1771635167045,1.19256327,624.75,624.22,1.316]
[1771635181159,1.19256327,624.74,624.22,1.316]
[1771635185059,0.27864521,624.88,624.22,1.316]
[1771635186762,1.19145758,624.74,624.22,1.316]
[1771635197267,1.19145758,624.74,624.19,1.20166192]
[1771635199572,1.19145758,624.78,624.23,1.20166192]
[1771635200568,1.19145758,624.78,624.24,1.304]
[1771635201274,1.19145758,624.79,624.24,1.304]
[1771635207878,1.19145758,624.84,624.27,1.20166192]
[1771635208078,1.19145758,624.86,624.29,1.20166192]
[1771635208377,1.19145758,624.88,624.29,1.20166192]
[1771635209282,1.19145758,624.89,624.29,1.20166192]
[1771635210281,1.19145758,624.89,624.28,1.20166192]
[1771635211283,1.19145758,624.9,624.28,1.20166192]
[1771635212384,1.19145758,624.9,624.27,1.20166192]
[1771635213080,1.19145758,624.94,624.31,1.20166192]
[1771635213283,1.19145758,624.95,624.31,1.20166192]
[1771635214282,1.19145758,624.95,624.3,1.20166192]
[1771635215286,1.19145758,624.96,624.3,1.20166192]
[1771635216287,1.19145758,624.96,624.29,1.20166192]
[1771635217290,1.19145758,624.97,624.29,1.20166192]
[1771635219388,1.19145758,624.97,624.28,1.20166192]
[1771635221394,1.19145758,624.98,624.28,1.20166192]
[1771635221992,1.19145758,624.97,624.28,1.20166192]
[1771635222293,1.19145758,624.98,624.28,1.20166192]
[1771635224292,1.19145758,624.98,624.27,1.20166192]
[1771635229800,1.19145758,624.98,624.28,1.166]
[1771635236407,1.19145758,624.97,624.28,2.36766192]
[1771635240107,1.19145758,624.96,624.28,2.36766192]
[1771635240304,1.19145758,624.95,624.28,1.166]
[1771635240708,1.19145758,624.92,624.28,1.166]
[1771635243310,1.19145758,624.91,624.28,1.166]
[1771635245411,1.19145758,624.9,624.28,1.166]
[1771635249310,1.19145758,624.89,624.28,2.36766192]
[1771635251514,1.19145758,624.88,624.29,1.20166192]
[1771635255416,1.19145758,624.87,624.28,2.36766192]
[1771635255622,1.19145758,624.83,624.28,1.166]
[1771635258221,1.19145758,624.84,624.28,1.166]
[1771635259319,1.19145758,624.73,624.28,1.166]
[1771635259821,1.19145758,624.73,624.23,8.9336668]
[1771635260224,1.19145758,624.74,624.23,8.9336668]
[1771635261224,1.19145758,624.75,624.23,8.9336668]
[1771635262324,1.19145758,624.76,624.24,1.548]
[1771635265226,1.19145758,624.77,624.24,1.548]
[1771635265625,1.19145758,624.76,624.24,1.548]
[1771635267221,1.19145758,624.77,624.24,1.548]
[1771635270232,1.19145758,624.78,624.24,1.548]
[1771635272827,1.19145758,624.79,624.24,1.548]
[1771635273828,1.19145758,624.81,624.24,1.548]
[1771635274033,1.19145758,624.83,624.24,1.548]
[1771635274933,1.19145758,624.84,624.24,1.548]
[1771635275428,1.19145758,624.85,624.24,1.548]
[1771635277331,1.19145758,624.87,624.24,1.548]
[1771635278236,1.19145758,624.86,624.24,1.548]
[1771635278436,1.19145758,624.88,624.24,1.548]
[1771635280733,0.27861174,625.0,624.24,1.548]
[1771635280734,1.19145758,624.89,624.24,1.548]
[1771635282235,1.19145758,624.88,624.24,1.548]
[1771635284536,1.19145758,624.89,624.24,1.548]
[1771635286338,1.19145758,624.9,624.24,1.548]
[1771635291242,1.19145758,624.89,624.24,1.548]
[1771635298849,1.19145758,624.95,624.26,1.20166192]
[1771635299149,1.19145758,625.09,624.38,1.20166192]
[1771635300345,1.86717279,625.21,624.24,1.548]
[1771635300346,1.19145758,625.08,624.37,1.20166192]
[1771635301153,1.19145758,625.07,624.36,1.20166192]
[1771635301351,1.19145758,625.04,624.32,1.20166192]
[1771635302151,1.19145758,625.04,624.31,1.20166192]
[1771635303246,1.19145758,625.04,624.3,1.20166192]
[1771635303446,1.19145758,625.03,624.29,1.20166192]
[1771635303651,1.19145758,624.99,624.25,1.20166192]
[1771635304350,1.19145758,625.0,624.25,1.20166192]
[1771635304549,1.19145758,624.97,624.24,1.548]
[1771635306950,1.19145758,624.91,624.24,1.548]
[1771635310256,1.19145758,624.9,624.24,1.548]
[1771635313357,1.19145758,624.89,624.24,1.548]
[1771635316159,1.19145758,624.88,624.24,1.548]
[1771635317858,1.19145758,624.9,624.24,1.548]
[1771635320267,1.19145758,624.89,624.22,1.20166192]
[1771635321167,1.19145758,624.89,624.23,1.20166192]
[1771635323563,1.19145758,624.9,624.24,1.20166192]
[1771635323871,1.19145758,624.9,624.25,1.577]
[1771635326273,1.19145758,624.89,624.25,1.577]
[1771635327274,1.19145758,624.9,624.25,1.577]
[1771635327474,1.19145758,624.89,624.25,1.577]
[1771635334082,1.19145758,624.88,624.25,1.577]
[1771635339595,1.19145758,624.87,624.25,1.577]
[1771635339895,1.19145758,624.83,624.25,1.577]
[1771635340293,1.19145758,624.84,624.25,1.577]
[1771635344198,1.19145758,624.83,624.25,1.577]
[1771635347398,1.19145758,624.82,624.25,1.577]
[1771635349402,1.19145758,624.81,624.25,1.577]
[1771635351400,1.19145758,624.72,624.25,1.577]
[1771635351805,1.19145758,624.71,624.25,1.577]
[1771635352304,1.19145758,624.72,624.25,1.577]
[1771635353405,1.19145758,624.73,624.25,1.577]
[1771635353705,0.27856268,625.21,624.25,1.577]
[1771635353706,1.19145758,624.72,624.25,1.577]
[1771635353906,1.19145758,624.67,624.25,1.577]
[1771635354405,1.19145758,624.68,624.25,1.577]
[1771635355303,1.19145758,624.69,624.25,1.577]
[1771635356311,1.19145758,624.7,624.25,1.577]
[1771635357206,1.19145758,624.69,624.25,1.577]
[1771635357404,1.19145758,624.7,624.25,1.577]
[1771635359306,2.38291517,624.93,624.25,1.577]
[1771635359307,1.19145758,624.71,624.25,1.577]
[1771635359906,1.19145758,624.71,623.97,1.20166192]
[1771635361113,1.19145758,624.71,623.96,1.20166192]
[1771635362310,1.19145758,624.72,623.96,1.20166192]
[1771635363114,1.19145758,624.73,623.97,1.20166192]
[1771635363410,1.19145758,624.73,623.96,1.20166192]
[1771635363610,1.19145758,624.73,623.98,1.504]
[1771635367014,1.19145758,624.78,624.01,1.20166192]
[1771635374220,1.19145758,624.77,624.01,1.20166192]
[1771635374418,1.19145758,624.77,624.02,1.20166192]
[1771635378521,1.19145758,624.77,624.03,1.20166192]
[1771635378730,1.19145758,624.78,624.04,1.20166192]
[1771635380324,1.19145758,624.77,624.05,1.20166192]
[1771635383324,1.19145758,624.76,624.06,1.20166192]
[1771635384328,1.19145758,624.75,624.06,1.20166192]
[1771635386432,1.19145758,624.75,624.07,1.20166192]
[1771635388330,1.19145758,624.74,624.07,1.20166192]
[1771635390329,1.19145758,624.74,624.08,1.20166192]
[1771635392237,1.19145758,624.73,624.08,1.20166192]
[1771635393440,1.19145758,624.73,624.09,1.20166192]
[1771635394340,1.19145758,624.72,624.09,1.20166192]
[1771635395441,1.19145758,624.72,624.1,1.20166192]
[1771635401343,1.19145758,624.71,624.1,1.20166192]
[1771635402842,1.19145758,624.8,624.19,1.20166192]
[1771635403041,1.19145758,624.84,624.23,1.20166192]
[1771635403345,1.19145758,624.85,624.23,1.20166192]
[1771635404246,1.19145758,624.86,624.22,1.20166192]
[1771635405244,1.19145758,624.87,624.21,1.20166192]
[1771635405842,1.19145758,624.86,624.21,1.20166192]
[1771635406245,1.19145758,624.87,624.21,1.20166192]
[1771635406939,1.19145758,624.87,624.22,1.761]
[1771635408342,1.19145758,624.88,624.22,1.761]
[1771635413251,1.19145758,624.89,624.22,1.761]
[1771635417153,1.19145758,625.01,624.3,1.20166192]
[1771635417352,1.19145758,625.03,624.31,1.20166192]
[1771635418252,1.19145758,625.03,624.3,1.20166192]
[1771635419249,1.19145758,625.04,624.29,1.20166192]
[1771635419855,1.19145758,625.01,624.26,1.20166192]
[1771635422157,1.19145758,625.01,624.25,1.20166192]
[1771635422355,1.19145758,624.97,624.22,1.761]
[1771635425252,1.19145758,624.98,624.22,1.761]
[1771635429560,1.19145758,624.95,624.22,1.761]
[1771635434263,1.19145758,624.94,624.22,1.761]
[1771635438163,1.19145758,624.93,624.22,1.761]
[1771635441267,1.19145758,624.92,624.22,1.761]
[1771635442169,1.19145758,624.92,624.22,2.96266192]
[1771635443272,1.19145758,624.91,624.22,2.96266192]
[1771635443770,1.58861011,625.03,624.23,1.20166192]
[1771635443771,1.19145758,624.92,624.23,1.20166192]
[1771635444270,1.19145758,624.92,624.24,1.20166192]
[1771635445372,1.58861011,625.03,624.24,1.20166192]
[1771635445373,1.19145758,624.91,624.24,1.20166192]
[1771635446473,1.19145758,624.9,624.25,1.20166192]
[1771635447175,1.19145758,624.89,624.26,1.20166192]
[1771635448570,1.19145758,624.89,624.27,1.738]
[1771635456274,1.19145758,624.89,624.27,2.93966192]
[1771635458877,1.58861011,625.0,624.27,2.93966192]
[1771635459177,1.18608822,624.89,624.27,2.93810272]
[1771635461278,1.18608822,624.88,624.27,2.93810272]
[1771635463286,1.18608822,624.88,624.28,1.20010272]
[1771635464382,1.18608822,624.87,624.28,1.20010272]
[1771635466083,1.18608822,624.87,624.29,1.20010272]
[1771635467184,1.18608822,624.86,624.29,1.20010272]
[1771635471186,1.18608822,624.86,624.3,1.20010272]
[1771635473190,1.18608822,624.85,624.3,1.20010272]
[1771635473790,1.18608822,624.86,624.3,1.20010272]
[1771635474191,1.18608822,624.85,624.3,1.20010272]
[1771635483301,1.58861011,624.97,624.27,1.738]
[1771635483302,1.18608822,624.88,624.33,1.20010272]
[1771635483597,1.18608822,624.94,624.39,1.20010272]
[1771635484197,1.18608822,624.95,624.37,1.20010272]
[1771635485299,1.18608822,624.96,624.37,1.20010272]
[1771635486304,1.18608822,624.96,624.36,1.20010272]
[1771635487202,1.18608822,624.97,624.36,1.20010272]
[1771635489100,1.18608822,624.97,624.35,1.20010272]
[1771635489506,1.18608822,625.02,624.4,1.20010272]
[1771635489805,1.18608822,625.03,624.41,1.20010272]
[1771635490305,1.18608822,625.06,624.42,1.20010272]
[1771635491309,1.18608822,625.06,624.41,1.20010272]
[1771635492403,1.18608822,625.07,624.4,1.20010272]
[1771635494211,1.18608822,625.08,624.39,1.20010272]
[1771635496108,1.18608822,625.08,624.4,1.825]
[1771635497210,1.18608822,625.09,624.4,1.825]
[1771635500219,1.18608822,625.1,624.4,1.825]
[1771635503818,1.18608822,625.11,624.4,1.825]
[1771635508329,1.58861011,625.23,624.4,1.825]
[1771635508528,1.18383339,625.11,624.4,1.825]
[1771635508729,1.18383339,625.13,624.4,3.02216426]
[1771635510029,1.18383339,625.13,624.4,1.19716426]
[1771635511032,1.18383339,625.15,624.42,1.19716426]
[1771635511331,1.18383339,625.16,624.42,1.19716426]
[1771635511828,1.18383339,625.21,624.48,1.19716426]
[1771635512232,1.18383339,625.22,624.48,1.19716426]
[1771635512832,1.18383339,625.22,624.49,1.855]
[1771635513731,1.462376,625.24,624.5,1.19716426]
[1771635513930,1.18383339,625.26,624.52,1.19716426]
[1771635514429,1.18383339,625.27,624.51,1.19716426]
[1771635517433,1.18383339,625.35,624.58,1.19716426]
[1771635518235,1.18383339,625.36,624.58,1.19716426]
[1771635519336,1.4622902,625.37,624.57,1.19716426]
[1771635522438,0.27845681,625.37,624.56,1.19716426]
[1771635523135,1.4622902,625.37,624.57,1.19716426]
[1771635523340,0.27845681,625.37,624.56,1.19716426]
[1771635524136,1.4622902,625.37,624.57,1.19716426]
[1771635524340,0.27845681,625.37,624.56,1.19716426]
[1771635525941,1.18383339,625.38,624.56,1.19716426]
[1771635528041,1.18383339,625.39,624.58,1.19716426]
[1771635530346,0.27841671,625.45,624.47,1.6022159]
[1771635530645,1.18318142,625.39,624.58,1.1947374]
[1771635531847,1.18318142,625.4,624.59,1.1947374]
[1771635532647,1.18318142,625.4,624.6,1.405]
[1771635536351,1.18318142,625.41,624.6,1.405]
[1771635542058,1.18318142,625.46,624.62,1.1947374]
[1771635543258,1.18318142,625.45,624.62,1.1947374]
[1771635543455,1.18318142,625.46,624.62,1.1947374]
[1771635544255,1.18318142,625.45,624.62,1.1947374]
[1771635545257,1.18318142,625.45,624.63,1.1947374]
[1771635547261,1.18318142,625.44,624.63,1.1947374]
[1771635548262,1.18318142,625.44,624.64,1.1947374]
[1771635549661,1.18318142,625.44,624.65,1.1947374]
[1771635551260,1.18318142,625.43,624.66,1.1947374]
[1771635552359,1.18318142,625.43,624.67,1.1947374]
[1771635553258,1.18318142,625.42,624.67,1.1947374]
[1771635554362,1.18318142,625.41,624.68,1.1947374]
[1771635555267,1.18318142,625.37,624.66,1.1947374]
[1771635555468,1.18318142,625.34,624.63,1.1947374]
[1771635556267,1.18318142,625.33,624.64,1.1947374]
[1771635557363,1.18318142,625.32,624.65,1.1947374]
[1771635558467,1.18318142,625.32,624.66,1.1947374]
[1771635559266,1.18318142,625.31,624.66,1.1947374]
[1771635559568,1.18318142,625.3,624.64,1.1947374]
[1771635560465,1.18318142,625.28,624.65,1.401]
[1771635561269,1.18318142,625.27,624.65,1.401]
[1771635568980,1.58861011,625.38,624.65,1.401]
[1771635569177,1.18908972,625.27,624.65,1.401]
[1771635572084,1.18908972,625.25,624.65,1.401]
[1771635575589,1.18908972,625.25,624.62,1.19895308]
[1771635576284,1.18908972,625.25,624.61,1.19895308]
[1771635579792,1.18908972,625.25,624.62,1.866]
[1771635582000,1.18908972,625.26,624.62,3.06495308]
[1771635582199,1.18908972,625.26,624.63,1.19895308]
[1771635583095,1.18908972,625.26,624.62,3.06495308]
[1771635583300,1.18908972,625.26,624.63,1.19895308]
[1771635593309,1.18908972,625.25,624.63,1.19895308]
[1771635593913,1.18908972,625.26,624.64,1.19895308]
[1771635594312,1.18908972,625.26,624.65,1.19895308]
[1771635596312,1.18908972,625.25,624.65,1.19895308]
[1771635597109,1.18908972,625.26,624.65,1.19895308]
[1771635597409,1.18908972,625.25,624.66,1.19895308]
[1771635598113,1.18908972,625.28,624.69,1.19895308]
[1771635599415,1.18908972,625.27,624.7,1.19895308]
[1771635600214,1.18908972,625.29,624.71,1.19895308]
[1771635600516,1.18908972,625.32,624.75,1.19895308]
[1771635601417,1.18908972,625.33,624.75,1.19895308]
[1771635602114,1.18908972,625.33,624.74,1.19895308]
[1771635602814,1.18908972,625.34,624.75,1.19895308]
[1771635603516,1.18908972,625.35,624.76,1.19895308]
[1771635604219,1.18908972,625.35,624.75,1.19895308]
[1771635605320,1.18908972,625.36,624.75,1.19895308]
[1771635605518,1.18908972,625.36,624.76,1.857]
[1771635607622,1.18908972,625.37,624.76,1.857]
[1771635607821,1.18908972,625.36,624.76,1.857]
[1771635608520,1.18908972,625.37,624.76,1.857]
[1771635608720,1.18908972,625.43,624.8,1.19895308]
[1771635609122,1.18908972,625.44,624.79,1.19895308]
[1771635611116,1.18908972,625.45,624.79,1.19895308]
[1771635611321,1.18908972,625.45,624.78,1.19895308]
[1771635612018,1.18908972,625.51,624.85,1.19895308]
[1771635612223,1.18908972,625.52,624.84,1.19895308]
[1771635613219,1.18908972,625.53,624.83,1.19895308]
[1771635614118,1.18908972,625.54,624.82,1.19895308]
[1771635616117,1.18908972,625.55,624.81,1.19895308]
[1771635618123,1.18908972,625.56,624.8,1.19895308]
[1771635621227,1.18908972,625.56,624.79,1.19895308]
[1771635621527,1.18908972,625.57,624.79,1.19895308]
[1771635621928,1.18908972,625.56,624.79,1.19895308]
[1771635622224,1.18908972,625.51,624.76,1.857]
[1771635623925,1.18908972,625.52,624.76,1.857]
[1771635628628,1.18503408,625.52,624.76,1.857]
[1771635629333,1.18503408,625.51,624.76,1.857]
[1771635630734,1.18503408,625.54,624.77,1.19534237]
[1771635631034,1.18503408,625.54,624.76,1.857]
[1771635631035,1.18503408,625.6,624.83,1.19534237]
[1771635632129,1.18503408,625.62,624.85,1.19534237]
[1771635633031,1.18503408,625.64,624.87,1.19534237]
[1771635633231,1.18503408,625.64,624.86,1.19534237]
[1771635635333,1.18503408,625.64,624.87,1.19534237]
[1771635635733,1.18503408,625.67,624.9,1.19534237]
[1771635636238,1.18503408,625.68,624.9,1.19534237]
[1771635636538,1.18503408,625.67,624.9,1.19534237]
[1771635637235,1.58861011,625.79,624.9,1.19534237]
[1771635637236,1.18503408,625.68,624.9,1.19534237]
[1771635637439,1.18503408,625.67,624.9,1.19534237]
[1771635638139,1.18503408,625.68,624.9,1.19534237]
[1771635638339,1.18503408,625.67,624.9,1.19534237]
[1771635639136,1.18503408,625.73,624.95,1.19534237]
[1771635639336,1.18503408,625.73,624.96,1.19534237]
[1771635640241,1.18503408,625.73,624.95,1.19534237]
[1771635640541,1.18503408,625.73,624.96,1.19534237]
[1771635641243,1.18503408,625.73,624.95,1.19534237]
[1771635641438,1.18503408,625.8,625.03,1.19534237]
[1771635641737,1.18503408,625.84,625.07,1.19534237]
[1771635642339,1.18503408,625.88,625.1,1.19534237]
[1771635642638,1.18503408,625.88,624.39,4.00553976]
[1771635642639,1.18503408,625.82,625.04,1.19534237]
[1771635643139,1.18503408,625.83,625.03,1.19534237]
[1771635643441,1.18503408,625.78,624.98,1.19534237]
[1771635643641,1.18503408,625.77,624.97,1.19534237]
[1771635644341,1.18503408,625.77,624.98,1.19534237]
[1771635644841,1.18503408,625.76,624.97,1.19534237]
[1771635645342,1.18503408,625.76,624.86,1.6022159]
[1771635645343,1.18503408,625.76,624.96,1.19534237]
[1771635646741,1.18503408,625.76,624.97,1.3]
[1771635649140,1.18503408,625.76,624.97,2.49534237]
[1771635650545,1.18503408,625.77,624.97,2.49534237]
[1771635651145,1.18503408,625.77,624.98,1.19534237]
[1771635653241,1.18503408,625.76,624.98,1.19534237]
[1771635654045,1.18503408,625.77,624.99,1.19534237]
[1771635661246,1.18503408,625.76,624.98,1.19534237]
[1771635666249,1.18503408,625.75,624.98,1.19534237]
[1771635667254,1.18503408,625.74,624.98,1.19534237]
[1771635668154,1.18503408,625.7,624.95,1.19534237]
[1771635668757,1.18503408,625.65,624.89,1.19534237]
[1771635668956,1.18503408,625.65,624.96,1.384]
[1771635669255,1.18503408,625.64,624.96,1.384]
[1771635671158,1.18503408,625.63,624.96,1.384]